bitfinex-derivatives/quotes_ETHF0:USTF0_20250810
["timestamp","ask_amount","ask_price","bid_price","bid_amount"]
[1754832735501,1.28518,4187.9,4187.8,0.2572]
[1754832735901,1.02178,4187.9,4187.8,0.2572]
[1754832736101,1.02178,4187.9,4187.8,0.9461]
[1754832736301,0.47757,4188.0,4187.9,0.9461]
[1754832736502,0.75887,4188.0,4187.9,0.2572]
[1754832736701,0.75887,4188.0,4081.8,25.6427014]
[1754832736702,0.2813,4187.8,4186.9,0.6889]
[1754832737003,0.2813,4187.8,4185.9,35.60651]
[1754832737004,0.5442,4187.7,4187.0,0.6889]
[1754832737307,0.5442,4187.4,4187.2,0.9461]
[1754832737492,0.47766,4187.2,4185.9,35.60651]
[1754832737698,0.47766,4187.2,4185.9,34.73156862]
[1754832737898,0.47766,4187.2,4186.0,3.14431099]
[1754832738199,0.5442,4187.1,4187.0,0.6889]
[1754832738601,0.5442,4187.1,4187.0,1.00846862]
[1754832738800,0.5442,4187.1,4187.0,1.26566862]
[1754832738999,0.47771,4186.7,4186.6,0.6889]
[1754832739198,1.02191,4186.7,4186.6,0.4061]
[1754832739399,1.62691,4186.7,4186.6,0.8703]
[1754832739703,1.62691,4186.7,4186.6,1.3842]
[1754832739899,0.47771,4186.7,4186.6,1.5706]
[1754832740506,1.10341,4186.7,4186.6,1.5706]
[1754832740701,1.36631,4186.7,4186.6,1.5706]
[1754832740897,0.47777,4186.2,4186.1,1.1645]
[1754832741098,0.47777,4186.2,4186.1,1.5706]
[1754832741606,1.62697,4186.2,4186.1,0.57676862]
[1754832741799,1.62697,4186.2,4186.1,0.75816862]
[1754832742000,1.62697,4186.2,4186.1,1.48406862]
[1754832742300,1.62697,4186.2,4186.1,1.89016862]
[1754832743302,1.62697,4186.2,4186.1,1.48406862]
[1754832743604,1.89037,4186.2,4186.1,0.57676862]
[1754832744207,0.47781,4185.9,4185.8,1.3134]
[1754832744406,0.47781,4185.9,4185.8,1.5706]
[1754832744807,0.47781,4185.9,4185.0,22.609]
[1754832744808,0.3444,4186.0,4185.9,1.5706]
[1754832745009,0.5442,4186.3,4185.9,0.6245]
[1754832745301,0.82216,4186.3,4186.2,1.5706]
[1754832745502,1.19426,4186.9,4185.9,0.31956862]
[1754832745503,1.10343,4186.6,4186.5,1.5706]
[1754832745709,1.36897,4187.1,4187.0,1.5706]
[1754832746505,1.08271,4186.7,4186.6,1.2878]
[1754832746700,0.47776,4186.3,4185.2,0.31956862]
[1754832746907,1.1492,4185.9,4185.8,1.0306]
[1754832747208,1.1492,4185.9,4185.8,1.3134]
[1754832747409,0.47781,4185.9,4185.8,1.5706]
[1754832750211,1.36411,4185.9,4185.8,1.5706]
[1754832750512,1.62701,4185.9,4185.8,1.89016862]
[1754832751809,1.36411,4185.9,4185.8,0.31956862]
[1754832752002,1.36411,4185.9,4185.8,1.48406862]
[1754832752210,0.91241,4185.9,4185.8,1.89016862]
[1754832753212,1.62701,4185.9,4185.8,1.89016862]
[1754832754106,1.36414,4185.6,4185.5,1.3134]
[1754832754310,1.62704,4185.6,4185.5,0.9073]
[1754832754614,1.62704,4185.6,4185.5,1.3134]
[1754832754914,0.47787,4185.3,4185.2,0.6245]
[1754832755508,0.47786,4185.5,4185.3,1.5799]
[1754832755709,0.65366,4186.3,4186.2,0.1802]
[1754832756014,1.10406,4186.3,4186.2,0.7304]
[1754832756315,0.47776,4186.3,4186.2,1.5799]
[1754832758007,1.74985,4187.3,4186.2,0.94466862]
[1754832758207,1.66467,4187.1,4187.0,1.5799]
[1754832758916,1.66467,4187.1,4186.6,0.279]
[1754832758917,1.4455,4186.7,4186.6,0.279]
[1754832759119,1.182,4186.7,4186.6,1.5799]
[1754832759315,1.65971,4186.7,4186.6,1.5799]
[1754832759816,0.83826,4187.1,4187.0,0.3539]
[1754832760008,1.39036,4187.1,4187.0,1.5799]
[1754832760708,0.48266,4187.1,4187.0,1.89946862]
[1754832760909,0.005,4187.1,4187.0,1.89946862]
[1754832763618,0.005,4187.1,4187.0,0.279]
[1754832763619,1.4505,4187.1,4187.0,0.279]
[1754832764617,0.8264,4186.8,4186.7,0.5502]
[1754832764818,1.4455,4186.8,4186.7,0.5502]
[1754832765815,1.4455,4186.8,4186.7,0.279]
[1754832766118,1.182,4186.5,4186.4,1.46826862]
[1754832766319,1.182,4186.5,4186.4,1.89946862]
[1754832767621,1.182,4186.5,4186.4,1.5799]
[1754832768212,1.182,4186.5,4186.4,0.8904]
[1754832768521,1.182,4187.0,4186.9,1.5799]
[1754832768918,1.38538,4187.0,4186.9,1.5799]
[1754832769121,1.10398,4187.0,4186.9,1.5799]
[1754832769616,1.38538,4187.0,4186.9,1.5799]
[1754832770120,1.65968,4187.0,4186.9,1.5799]
[1754832770619,0.58991413,4187.7,4187.5,0.47762]
[1754832770920,0.58991413,4187.7,4187.0,2.3884]
[1754832770921,1.22904551,4188.8,4188.1,0.279]
[1754832771127,1.79668,4188.7,4188.6,0.3539]
[1754832771318,1.79668,4188.7,4188.6,0.8826]
[1754832771617,0.6263,4188.3,4187.9,0.279]
[1754832771823,0.6263,4188.0,4187.9,1.3009]
[1754832772019,0.47751,4188.5,4188.0,0.47756]
[1754832772220,0.6263,4188.5,4188.4,1.5799]
[1754832773116,0.6263,4188.5,4188.4,1.1616]
[1754832773117,1.3192,4188.5,4188.4,1.1616]
[1754832773317,1.3192,4188.2,4188.1,1.135]
[1754832773523,1.585,4188.2,4188.1,0.7167]
[1754832774218,0.4186,4189.8,4188.1,7.0512]
[1754832774412,0.47743,4189.2,4189.1,0.6251]
[1754832774616,1.52233,4189.2,4189.1,1.5799]
[1754832774823,1.79663,4189.2,4189.1,1.5799]
[1754832775521,1.0449,4189.2,4189.1,1.5799]
[1754832775716,0.2707,4189.2,4189.1,1.5799]
[1754832776220,1.0449,4189.5,4189.4,1.5799]
[1754832776620,0.47737,4189.6,4189.4,1.5799]
[1754832776621,0.47737,4189.6,4189.4,0.6251]
[1754832776825,1.52227,4189.6,4189.5,1.5799]
[1754832777024,1.19318,4190.4,4189.5,0.6251]
[1754832777227,1.79656,4189.7,4189.6,1.1616]
[1754832777431,0.92399,4189.3,4189.2,0.8826]
[1754832777728,1.52229,4189.3,4189.2,1.5799]
[1754832778317,0.47739,4189.4,4189.2,0.279]
[1754832778530,1.10361,4190.1,4190.0,0.3539]
[1754832778729,0.6844,4189.6,4189.0,0.6758]
[1754832778929,0.4466,4188.2,4188.1,3.72896374]
[1754832779131,1.131,4188.2,4188.1,1.3009]
[1754832779824,1.585,4187.9,4187.8,0.6114]
[1754832780624,0.47753,4188.2,4187.8,1.3009]
[1754832780826,0.47753,4188.2,4186.8,34.398]
[1754832780827,0.47753,4188.2,4188.1,1.5799]
[1754832781530,0.65343,4188.2,4188.1,1.5799]
[1754832781729,0.91923,4188.2,4188.1,1.5799]
[1754832781929,0.4417,4188.2,4188.1,1.5799]
[1754832782125,0.4825,4188.4,4188.1,0.6251]
[1754832782336,1.3107,4188.3,4188.2,0.6758]
[1754832782533,1.585,4188.3,4188.2,1.0297]
[1754832782726,1.585,4188.3,4188.2,1.3009]
[1754832783331,1.3107,4188.3,4188.2,1.5799]
[1754832783631,1.131,4188.3,4188.2,1.5799]
[1754832784135,1.3107,4188.3,4188.2,1.5799]
[1754832784434,0.4825,4188.4,4186.8,34.398]
[1754832784435,1.10385,4188.0,4187.9,0.4312]
[1754832784636,2.06258,4187.7,4187.6,1.0297]
[1754832784932,2.06258,4187.7,4187.6,0.6114]
[1754832785436,1.10612,4187.4,4187.3,0.7687]
[1754832785729,2.06862,4187.4,4187.3,0.6286]
[1754832785934,2.06866,4187.0,4186.9,1.3284]
[1754832786333,2.06866,4187.0,4186.9,0.6286]
[1754832786531,1.1062,4186.7,4186.6,0.609]
[1754832786732,1.8044,4186.7,4186.6,1.3074]
[1754832786928,1.10625,4186.2,4186.1,0.1731]
[1754832787127,2.06879,4185.9,4185.8,0.9082]
[1754832787430,2.06879,4185.9,4185.8,0.3504]
[1754832787733,2.06879,4185.9,4185.8,0.6286]
[1754832788130,1.1508,4185.6,4185.5,1.3284]
[1754832788331,1.1508,4185.6,4185.5,1.587]
[1754832789633,1.3267,4185.6,4185.5,1.587]
[1754832789838,1.3267,4185.6,4185.5,0.9082]
[1754832789839,1.591,4185.6,4185.5,0.9082]
[1754832790136,1.591,4185.6,4185.5,1.3284]
[1754832790339,0.4526,4185.6,4185.5,1.587]
[1754832790738,0.4778,4185.8,4185.5,1.587]
[1754832791039,1.62859,4185.9,4185.8,0.63]
[1754832791337,1.62859,4185.9,4185.8,1.3284]
[1754832791539,2.06879,4185.9,4185.8,1.3284]
[1754832792939,0.47779,4185.9,4185.8,1.587]
[1754832793439,1.19426,4186.7,4184.8,0.005]
[1754832793440,1.62865,4185.4,4185.3,1.587]
[1754832793637,2.06885,4185.4,4185.3,0.9082]
[1754832793830,2.06889,4185.0,4184.9,0.6286]
[1754832794035,2.06889,4185.0,4184.9,0.4555]
[1754832794430,0.9625,4184.9,4184.8,0.005]
[1754832794637,1.591,4184.9,4184.8,0.005]
[1754832795938,1.591,4184.9,4184.8,1e-05]
[1754832796146,1.1508,4183.8,4183.7,1.587]
[1754832796742,1.3267,4183.8,4183.7,1.587]
[1754832796944,1.591,4183.8,4183.7,0.8729]
[1754832797244,1.591,4183.8,4183.7,0.1731]
[1754832797441,1.591,4183.8,4183.7,1.587]
[1754832797744,1.1508,4183.8,4183.7,1.587]
[1754832799546,1.3267,4183.8,4183.7,1.587]
[1754832800445,1.591,4183.8,4183.7,1.587]
[1754832802247,1.591,4183.8,4183.7,0.1773]
[1754832802447,1.591,4183.5,4183.4,1.3284]
[1754832802839,0.47807,4183.4,4182.9,0.47812]
[1754832803045,0.4228,4183.6,4183.3,0.63]
[1754832803240,1.79365,4183.6,4183.5,1.587]
[1754832803644,1.79365,4183.6,4183.5,0.9082]
[1754832803839,2.06905,4183.6,4183.5,0.4513]
[1754832804050,2.06905,4183.6,4183.3,1.2366]
[1754832804051,1.3267,4183.4,4183.3,1.2366]
[1754832804247,1.3267,4183.4,4183.3,1.587]
[1754832804951,1.591,4183.4,4183.3,0.9082]
[1754832805145,1.1508,4182.7,4182.6,1.587]
[1754832805447,1.80485,4182.7,4182.6,1.587]
[1754832805645,1.3267,4182.7,4182.6,1.587]
[1754832805841,1.0513,4182.6,4182.5,1.4097]
[1754832806043,1.3156,4182.6,4182.5,0.6286]
[1754832806243,0.2643,4181.8,4180.1,1.19611]
[1754832806448,15.821,4184.6,4181.5,0.4202]
[1754832806645,0.2754,4183.5,4181.8,0.957]
[1754832806843,0.47817,4182.6,4181.5,0.6984]
[1754832807045,0.1763,4182.7,4182.6,1.3284]
[1754832807247,1.591,4182.7,4182.6,1.587]
[1754832807453,1.591,4182.7,4182.6,0.9082]
[1754832807746,0.47815,4182.8,4182.7,0.957]
[1754832807949,0.93075,4182.8,4182.7,1.587]
[1754832808150,1.80485,4182.8,4182.7,1.587]
[1754832808346,2.06919,4182.3,4182.2,1.3284]
[1754832808550,0.65454,4181.9,4181.8,1.3088]
[1754832808752,1.80494,4181.9,4181.8,1.3088]
[1754832809046,1.3267,4181.9,4181.8,1.587]
[1754832809247,0.47821,4182.2,4181.9,0.957]
[1754832809447,0.2754,4183.0,4182.3,0.957]
[1754832809648,0.728,4183.0,4182.9,1.587]
[1754832809850,0.2754,4183.3,4183.2,0.63]
[1754832810045,1.62887,4183.4,4183.3,0.957]
[1754832810251,1.80477,4183.4,4183.3,1.587]
[1754832810447,0.47804,4183.7,4183.3,0.957]
[1754832810646,0.2643,4184.1,4181.4,1.02835141]
[1754832810647,0.47811,4183.1,4182.2,0.957]
[1754832810843,0.6982,4183.0,4181.8,0.957]
[1754832811048,0.2643,4183.2,4182.7,0.47815]
[1754832811247,0.75349,4183.2,4181.6,1.19567]
[1754832811444,0.75349,4183.2,4181.5,22.585]
[1754832811754,0.4228,4184.4,4183.2,0.6788]
[1754832812049,0.47801,4183.9,4183.3,0.47808]
[1754832812256,0.47801,4183.9,4183.4,0.957]
[1754832812451,0.478,4184.0,4183.5,0.957]
[1754832812655,0.47799,4184.1,4182.5,0.6788]
[1754832812855,0.2643,4184.5,4183.3,0.47807]
[1754832813050,1.19462,4185.4,4181.5,22.585]
[1754832813051,0.47792,4184.7,4183.9,0.5368]
[1754832813250,0.75331,4184.8,4184.0,0.89819]
[1754832813455,0.47794,4184.5,4183.9,0.47801]
[1754832813656,0.47794,4184.5,4184.0,0.4202]
[1754832813858,0.47796,4184.3,4184.1,0.2586]
[1754832814053,0.9625,4184.2,4184.1,0.6788]
[1754832814255,0.6982,4184.0,4183.8,0.6788]
[1754832814458,0.6982,4184.4,4183.6,0.2586]
[1754832814657,0.6982,4184.4,4183.7,0.6984]
[1754832814857,0.478,4184.0,4183.5,0.957]
[1754832815057,0.478,4184.0,4182.9,22.586]
[1754832815058,0.75343,4183.8,4183.7,0.957]
[1754832815358,1.17623,4183.8,4183.7,0.957]
[1754832815554,1.45033,4183.8,4183.7,0.957]
[1754832816060,1.45033,4183.8,4183.7,0.2782]
[1754832816647,1.12867,4183.4,4183.3,0.9505]
[1754832817247,1.40277,4183.4,4183.3,0.9505]
[1754832818462,0.9247,4183.3,4183.2,0.2808]
[1754832818657,0.9247,4183.3,4183.2,0.9505]
[1754832818850,0.6625,4183.7,4183.2,0.9505]
[1754832819052,0.47805,4183.6,4183.2,0.9505]
[1754832819563,0.47808,4183.3,4183.2,1.5951]
[1754832819756,1.76048,4183.3,4183.2,1.5951]
[1754832819956,2.03458,4183.3,4183.2,1.5951]
[1754832820153,2.03458,4183.3,4183.2,0.9254]
[1754832820353,2.03458,4183.3,4183.1,0.005]
[1754832820354,1.5565,4183.2,4183.1,0.005]
[1754832820663,1.5565,4183.2,4183.1,1.6001]
[1754832820664,1.2824,4183.2,4183.1,1.6001]
[1754832820859,0.47803,4183.7,4183.6,0.2705]
[1754832821064,0.92343,4183.7,4183.6,1.5951]
[1754832821265,1.58933,4183.7,4183.6,1.5951]
[1754832821465,0.005,4184.0,4183.6,1.5951]
[1754832821665,0.7279,4184.0,4183.9,1.5951]
[1754832821964,0.005,4184.0,4183.9,1.5951]
[1754832824762,0.005,4184.0,4183.2,0.9505]
[1754832824965,0.1882,4184.0,4183.9,1.5951]
[1754832825167,0.005,4184.0,4183.9,1.5951]
[1754832825369,0.1882,4184.0,4183.9,1.5951]
[1754832825568,1.5615,4184.0,4183.9,0.2705]
[1754832825867,0.9247,4183.9,4183.3,0.9505]
[1754832826268,0.9247,4183.9,4183.4,0.2808]
[1754832826469,0.7229,4183.5,4183.4,0.6446]
[1754832826863,0.7229,4183.5,4183.4,1.5951]
[1754832827065,0.47802,4183.8,4183.7,0.6446]
[1754832827264,0.47802,4183.8,4183.7,1.5951]
[1754832827462,0.47801,4183.9,4183.8,0.9505]
[1754832827666,0.47801,4183.9,4183.8,1.5951]
[1754832828564,0.66121,4183.9,4183.8,1.5951]
[1754832829171,2.03451,4183.9,4183.8,1.5951]
[1754832829873,1.5565,4183.9,4183.8,1.5951]
[1754832830375,1.5565,4183.9,4183.8,0.9254]
[1754832830575,0.6318,4183.6,4183.5,1.0476]
[1754832830771,1.5565,4183.6,4183.5,1.3284]
[1754832831073,1.0202,4183.2,4183.1,1.3193]
[1754832831270,1.2824,4183.2,4183.1,1.3193]
[1754832831463,0.7229,4183.2,4183.1,0.005]
[1754832831669,1.5565,4183.2,4183.1,1.3334]
[1754832832265,1.5565,4183.2,4183.1,0.005]
[1754832832866,1.2824,4183.2,4183.1,1.3334]
[1754832833062,1.2824,4183.2,4183.1,0.005]
[1754832833063,1.5565,4183.2,4183.1,0.005]
[1754832833470,0.47808,4183.3,4183.2,1.5951]
[1754832833772,1.20098,4183.3,4183.2,1.5951]
[1754832834175,0.1832,4183.3,4183.2,1.5951]
[1754832834465,1.20094,4183.6,4183.5,0.6446]
[1754832834672,1.76044,4183.6,4183.5,1.5951]
[1754832834866,0.47809,4183.2,4183.1,0.9304]
[1754832835070,2.03459,4183.2,4183.1,0.005]
[1754832835270,2.03459,4183.2,4183.1,1.3334]
[1754832835472,2.03459,4183.2,4183.1,1.6001]
[1754832835669,0.894,4183.2,4183.1,1.6001]
[1754832835870,0.93877,4183.4,4183.3,0.6446]
[1754832836175,1.5565,4183.3,4183.2,0.4678]
[1754832836375,1.5565,4183.3,4183.2,1.3284]
[1754832836575,1.2824,4183.3,4183.2,1.5951]
[1754832836969,1.195,4184.1,4181.8,2.10789936]
[1754832836970,1.1953,4183.0,4181.8,2.10789936]
[1754832837174,0.66145,4181.9,4181.8,0.6446]
[1754832837379,1.76065,4181.9,4181.8,1.5951]
[1754832837580,1.40299,4181.5,4181.4,0.54069141]
[1754832838079,7.40299,4181.5,4181.4,0.54069141]
[1754832838268,0.4784,4180.5,4180.4,0.6697]
[1754832838570,1.12905,4180.1,4179.5,0.9505]
[1754832838772,0.47849,4179.8,4179.1,0.47855]
[1754832838974,0.6506,4180.1,4179.5,0.4785]
[1754832839171,0.2622,4180.7,4179.8,0.9505]
[1754832839368,0.86677,4180.8,4180.0,0.6697]
[1754832839577,0.47838,4180.7,4180.1,0.9505]
[1754832839877,0.86677,4180.8,4180.2,0.9505]
[1754832840074,0.3884,4180.8,4180.2,0.9505]
[1754832840370,1.19566,4181.8,4179.0,1.38585797]
[1754832840573,0.9247,4181.5,4180.0,0.6697]
[1754832840764,0.2622,4181.4,4180.6,0.5475]
[1754832840969,0.74051,4181.4,4180.9,0.9505]
[1754832841166,0.47826,4181.8,4180.2,1.19608]
[1754832841469,0.6506,4181.9,4181.4,0.6697]
[1754832841670,0.47831,4181.3,4181.0,0.5475]
[1754832841873,1.12891,4181.3,4181.1,0.6697]
[1754832842081,0.47834,4181.1,4180.5,0.9505]
[1754832842274,0.47828,4181.6,4181.2,0.6838]
[1754832842479,1.12884,4181.9,4181.4,0.2808]
[1754832842682,0.47833,4181.2,4180.7,0.9505]
[1754832842875,0.47833,4181.2,4180.6,0.6697]
[1754832843078,0.6625,4180.9,4180.8,0.2808]
[1754832843279,0.2741,4180.9,4180.8,0.2808]
[1754832843474,0.2741,4180.9,4180.4,22.652]
[1754832843475,0.47836,4180.8,4180.4,22.652]
[1754832843677,0.2622,4180.6,4180.5,0.6838]
[1754832843876,0.6506,4180.6,4180.5,0.6838]
[1754832844176,1.12897,4180.7,4180.6,0.6838]
[1754832844377,0.47842,4180.4,4180.1,0.2667]
[1754832844570,0.47848,4179.8,4179.5,0.2808]
[1754832844777,0.47848,4179.8,4179.4,22.66]
[1754832844778,0.2622,4179.8,4179.7,0.6838]
[1754832844977,0.9247,4179.8,4179.5,0.9505]
[1754832845180,0.47842,4180.4,4179.7,0.9505]
[1754832845383,0.6806,4180.1,4179.8,0.9414]
[1754832845681,1.15905,4180.1,4180.0,0.2599]
[1754832845883,0.6806,4180.1,4180.0,0.2599]
[1754832846078,0.9565,4180.1,4180.0,0.2599]
[1754832846279,0.47841,4180.5,4179.8,0.47847]
[1754832846475,0.47843,4180.3,4180.0,0.4106]
[1754832846675,0.4059,4180.8,4179.4,22.66]
[1754832846884,0.6806,4180.6,4179.4,23.13852]
[1754832847174,0.4784,4180.5,4179.9,0.47846]
[1754832847470,0.4784,4180.5,4180.3,0.2599]
[1754832847674,0.4784,4180.5,4180.4,0.9414]
[1754832847880,0.005,4180.7,4180.4,0.9414]
[1754832848076,0.48337,4180.7,4180.2,0.47843]
[1754832848384,0.6856,4180.7,4180.4,0.6705]
[1754832848584,0.005,4180.7,4179.9,0.9414]
[1754832848776,0.005,4180.7,4180.0,0.9414]
[1754832848982,0.005,4180.7,4180.5,0.9414]
[1754832849177,0.005,4180.7,4180.6,0.2599]
[1754832849486,0.005,4180.7,4180.6,0.9414]
[1754832849981,1.43988,4180.7,4180.3,0.6815]
[1754832850184,0.6806,4180.4,4180.3,0.9414]
[1754832850682,0.6806,4180.4,4180.3,0.2599]
[1754832850883,0.9565,4180.4,4180.3,0.9414]
[1754832851185,0.9565,4180.6,4179.9,22.657]
[1754832851485,0.6806,4180.3,4180.0,0.9414]
[1754832851780,0.47841,4180.4,4179.9,23.13546]
[1754832851987,0.9565,4180.3,4180.2,0.2599]
[1754832852181,0.47843,4180.2,4179.8,0.2759]
[1754832852379,0.9565,4180.1,4179.9,0.2599]
[1754832852580,0.6818,4180.1,4180.0,0.2599]
[1754832852781,0.005,4180.7,4180.1,0.6705]
[1754832853186,0.2797,4180.7,4180.1,0.6705]
[1754832853384,0.6856,4180.7,4180.4,0.6815]
[1754832853582,0.6856,4180.7,4179.8,0.005]
[1754832853782,0.005,4180.7,4179.9,0.9414]
[1754832853979,0.005,4180.7,4180.5,0.9414]
[1754832854181,0.005,4180.7,4180.6,23.6264]
[1754832854582,0.9565,4181.7,4180.9,0.5308]
[1754832854781,0.9565,4181.5,4181.2,0.9414]
[1754832854983,0.6806,4181.4,4181.2,0.6815]
[1754832855182,0.6806,4181.4,4181.3,0.6705]
[1754832855379,0.47823,4182.0,4180.7,0.9414]
[1754832855584,0.47828,4181.6,4181.2,0.47831]
[1754832855790,0.4783,4181.4,4181.1,0.6705]
[1754832855986,0.9565,4181.3,4181.1,0.6705]
[1754832856287,0.6806,4181.3,4181.2,0.9414]
[1754832856587,0.47823,4182.0,4181.4,0.73819]
[1754832856887,0.6806,4181.6,4180.9,0.2599]
[1754832857182,0.47826,4181.7,4180.9,0.2599]
[1754832857183,0.9565,4181.2,4181.1,0.9414]
[1754832857382,0.9565,4181.2,4181.1,0.2599]
[1754832857582,0.2747,4181.2,4181.1,0.9414]
[1754832857778,0.9565,4181.5,4181.2,0.9414]
[1754832857984,0.9565,4181.3,4181.2,0.2599]
[1754832858185,0.47831,4181.3,4180.8,0.88896]
[1754832858381,0.2747,4181.1,4181.0,0.9414]
[1754832858589,0.2747,4181.4,4181.1,0.47833]
[1754832858781,0.6806,4181.6,4181.2,0.9414]
[1754832858977,0.6806,4181.6,4181.4,0.6815]
[1754832859390,0.47827,4181.7,4181.5,0.9414]
[1754832859587,0.4059,4181.8,4181.7,0.9414]
[1754832859888,0.47826,4181.7,4181.3,0.2599]
[1754832860189,0.6806,4181.4,4181.3,0.6815]
[1754832860489,0.47827,4181.7,4181.2,0.47831]
[1754832860686,0.2747,4181.5,4181.4,0.2709]
[1754832860888,0.6806,4181.5,4181.4,0.9414]
[1754832861285,0.6806,4181.5,4181.4,0.2599]
[1754832861487,1.4348,4181.4,4181.1,0.2599]
[1754832861686,0.9565,4181.3,4181.1,0.2599]
[1754832861882,0.9565,4181.0,4180.7,0.6705]
[1754832862083,0.75302,4181.2,4180.6,0.47838]
[1754832862382,0.75302,4181.2,4181.0,0.2599]
[1754832862383,0.6806,4181.1,4181.0,0.2599]
[1754832862581,0.47832,4181.2,4181.0,0.2599]
[1754832862783,0.4059,4181.3,4180.4,0.9414]
[1754832862983,0.47832,4181.2,4180.4,0.9414]
[1754832863179,1.19558,4182.0,4179.9,23.91717]
[1754832863180,0.4059,4180.9,4180.1,0.2709]
[1754832863487,0.47836,4180.8,4180.5,0.2599]
[1754832863678,0.47838,4180.7,4180.5,0.2599]
[1754832863885,0.9565,4180.6,4180.4,0.4106]
[1754832864085,0.9565,4180.7,4180.3,1.00922]
[1754832864285,0.47839,4180.6,4180.3,0.2599]
[1754832864486,0.9565,4180.4,4180.3,0.2599]
[1754832864892,0.9565,4180.4,4180.3,0.6705]
[1754832865085,0.9565,4180.4,4180.3,0.9414]
[1754832865283,0.9565,4180.5,4180.1,1.14894]
[1754832865485,0.9565,4180.3,4179.9,22.726]
[1754832865795,1.19595,4180.7,4179.9,22.726]
[1754832865989,0.9565,4180.6,4179.9,22.726]
[1754832866192,0.4059,4180.0,4179.9,22.726]
[1754832866493,0.9565,4180.0,4179.9,23.6674]
[1754832866685,1.43492,4180.4,4180.0,0.74936]
[1754832866882,0.2747,4180.3,4180.2,0.9414]
[1754832867092,0.9565,4180.3,4180.2,0.9414]
[1754832867487,1.43496,4180.0,4179.9,0.005]
[1754832867691,0.9565,4180.0,4179.9,0.005]
[1754832870590,0.9565,4180.0,4179.9,0.9464]
[1754832870993,0.75314,4180.2,4179.9,0.005]
[1754832871489,0.75434,4180.2,4180.0,0.9414]
[1754832871688,0.47844,4180.2,4180.1,0.4106]
[1754832871987,2.06514,4180.2,4180.1,1.5552]
[1754832872182,1.10866,4180.0,4179.9,0.005]
[1754832872385,2.06516,4180.0,4179.9,0.005]
[1754832872588,1.3108,4180.0,4179.9,1.5602]
[1754832874197,0.005,4180.8,4180.7,1.77708]
[1754832874495,0.005,4180.8,4180.7,1.41978]
[1754832874889,0.005,4180.8,4180.0,2.78939936]
[1754832874890,0.2747,4180.7,4180.0,2.78939936]
[1754832875193,0.4109,4180.8,4180.0,0.4106]
[1754832875194,0.4784,4180.5,4180.0,0.4106]
[1754832875489,0.47844,4180.1,4179.9,0.005]
[1754832875794,0.9286,4180.0,4179.9,0.005]
[1754832876094,0.9286,4180.0,4179.9,0.2629]
[1754832876898,0.9286,4180.0,4179.9,0.005]
[1754832877989,1.19618,4179.9,4178.4,3.23733472]
[1754832878193,2.3917,4181.1,4177.6,35.65082]
[1754832878194,0.6491,4179.1,4178.9,0.2579]
[1754832878385,0.3874,4179.1,4179.0,0.9079]
[1754832878588,0.6491,4179.1,4179.0,0.9079]
[1754832878789,0.6491,4179.7,4179.5,0.3929]
[1754832878991,0.2617,4179.7,4179.6,0.9079]
[1754832879189,0.9286,4179.7,4179.6,0.2579]
[1754832879391,0.8659,4179.7,4179.1,0.3929]
[1754832879596,0.2617,4179.4,4179.3,0.65]
[1754832879787,0.2617,4179.8,4179.4,0.47852]
[1754832879991,0.3874,4179.8,4179.5,0.3929]
[1754832880191,0.47847,4179.9,4179.6,0.2579]
[1754832880392,0.4785,4179.7,4179.1,0.47855]
[1754832880591,0.3874,4180.3,4179.2,0.9079]
[1754832880798,0.47847,4179.9,4179.4,0.9079]
[1754832880997,0.47849,4179.7,4179.5,0.9079]
[1754832881196,0.47849,4179.7,4179.2,0.47854]
[1754832881392,0.9286,4180.1,4179.1,0.6508]
[1754832881591,0.6491,4180.0,4179.3,0.515]
[1754832881799,0.3874,4179.7,4179.4,0.6508]
[1754832881995,0.47848,4179.8,4179.3,0.47853]
[1754832882195,1.12758,4179.8,4179.7,0.9079]
[1754832882395,0.6491,4179.8,4179.7,0.9079]
[1754832882592,0.47836,4180.9,4179.5,1.19629]
[1754832882794,0.6491,4181.3,4179.5,2.10419]
[1754832882996,0.47833,4181.1,4180.5,0.9079]
[1754832883199,0.4784,4180.5,4179.9,0.47847]
[1754832883395,0.6491,4180.5,4180.1,0.47844]
[1754832883696,0.6491,4181.4,4180.6,0.2579]
[1754832884000,0.6491,4181.8,4181.1,0.47833]
[1754832884198,0.6491,4181.8,4181.2,0.6508]
[1754832884395,0.6491,4181.7,4181.4,0.9079]
[1754832884597,0.6491,4181.7,4181.6,0.2579]
[1754832884800,0.6491,4181.7,4181.6,0.9079]
[1754832885500,0.6491,4182.0,4181.6,0.65]
[1754832885699,0.9286,4182.0,4181.7,0.6508]
[1754832885895,0.47822,4182.1,4181.7,0.6508]
[1754832886200,0.9286,4181.8,4181.7,0.6508]
[1754832886401,0.9286,4181.8,4181.6,0.2571]
[1754832886402,0.6491,4182.0,4181.8,0.2571]
[1754832886596,0.9286,4182.0,4181.9,0.2579]
[1754832886799,0.47824,4181.9,4181.5,0.3929]
[1754832887003,0.6491,4181.8,4181.7,0.6508]
[1754832887506,0.9286,4181.8,4181.7,0.2579]
[1754832887705,0.47826,4181.7,4181.3,0.3929]
[1754832887901,0.47826,4181.7,4181.4,0.2579]